Cogmind - Beta 14 *** ADVENTURER MODE // 2024.09.23 @ 16:47:19 Player: Knightshade Result: Self-destructed Performance ------------- Evolutions (1) 500 Regions Visited (3) 600 Robots Destroyed (16) 80 Value Destroyed (229) 229 Prototype IDs (3) 60 Alien Tech Used (0) 0 Bonus (0) 0 TOTAL SCORE: 1469 Bonus ------- None Cogmind --------- Core Integrity 365/400 Matter 250/300 Energy 247/250 System Corruption 3% Temperature Cool (0) Movement Rolling (90) Location -9/Materials Parts ------- > --- POWER (1) -------- (None) > --- PROPULSION (2) --- Wheel Compact Wheel > --- UTILITY (4) ------ Large Storage Unit Medium Battery > --- WEAPON (2) ------- (None) > --- INVENTORY (15) --- Flight Unit Flight Unit Medium Storage Unit Sensor Array Signal Interpreter Transport Network Coupler Propulsion Shielding Peak State ------------ > --- POWER ------------ Ion Engine > --- PROPULSION ------- Aluminum Leg Aluminum Leg > --- UTILITY ---------- Medium Storage Unit Medium Battery > --- WEAPON ----------- Light Assault Rifle Light Assault Rifle > --- INVENTORY -------- Wheel Wheel Compact Wheel Flight Unit Flight Unit Sensor Array Signal Interpreter Transport Network Coupler Propulsion Shielding Light Cannon [Rating: 8] Favorites ----------- Power Ion Engine Engine Ion Engine Propulsion Aluminum Leg Leg Aluminum Leg Wheel Wheel Utility Medium Storage Unit Storage Medium Storage Unit Weapon Light Assault Rifle Ballistic Gun Light Assault Rifle Ballistic Cannon Light Cannon Special Weapon Mining Laser Build | -11 -10 -10 -9 ------- Run | Yrd Mat Min Mat Slots Evolved 2 | . . . 2 Power . | . . . . Propulsion . | . . . . Utility 2 | . . . 2 Weapon . | . . . . Parts Attached 16 | 4 7 4 1 Power 2 | 1 1 . . Engine 2 | 1 1 . . Core . | . . . . Reactor . | . . . . Propulsion 6 | . 4 2 . Treads . | . . . . Leg 3 | . 3 . . Wheel 3 | . 1 2 . Hover . | . . . . Flight . | . . . . Utility 4 | 1 2 1 . Device . | . . . . Storage 4 | 1 2 1 . Processor . | . . . . Hackware . | . . . . Protection . | . . . . Artifact . | . . . . Weapon 4 | 2 . 1 1 Energy Gun . | . . . . Energy Cannon . | . . . . Ballistic Gun 2 | 2 . . . Ballistic Cannon 1 | . . 1 . Launcher . | . . . . Special Weapon 1 | . . . 1 Impact Weapon . | . . . . Slashing Weapon . | . . . . Piercing Weapon . | . . . . Special Melee Weapon . | . . . . Unidentified Prototypes . | . . . . Parts Lost 7 | . . 6 1 Power 1 | . . 1 . Propulsion 2 | . . 2 . Utility . | . . . . Weapon 4 | . . 3 1 Highest Loss Streak 5 | . . 5 1 To Critical Strikes . | . . . . Average Slot Usage (%) 87 | . 85 93 51 Engine 13 | . 13 12 . Leg 26 | . 27 24 . Wheel 1 | . . 2 22 Storage 19 | . 14 28 22 Ballistic Gun 26 | . 28 24 . Peak Build Rating 8 | 4 8 8 5 Average Rating 6 | 3 6 7 4 On Entrance 4 | . 4 8 4 Naked Turns . | . . . . Heaviest Build 29 | 12 19 29 23 Greatest Support 26 | 3 20 26 26 Greatest Overweight (x) 3 | 3 1 2 . Average Overweight (x) . | 2 . . . Largest Inventory Capacity 15 | 8 10 15 15 Average Capacity 11 | 7 9 14 15 Most Carried 10 | 4 10 10 8 Average Carried 7 | 2 6 9 7 Final Capacity 15 | 8 10 15 15 Final Carried 10 | 4 10 8 7 Class Distribution -------------------- 100% | Mutant Dominant Class ---------------- Mutant | -10/Materials Mutant | -10/Mines Mutant | -9/Materials Resources | -11 -10 -10 -9 ----------- Run | Yrd Mat Min Mat Matter Collected 396 | 240 106 50 . Remotely . | . . . . Salvage Created 326 | . 302 24 . Parts 30 | . 30 . . Haulers Intercepted 2 | . 2 . . Recyclers Shooed . | . . . . Parts Field Recycled . | . . . . Retrieved Matter . | . . . . Parts Self-Destructed . | . . . . Prevented . | . . . . Kills | -11 -10 -10 -9 ------- Run | Yrd Mat Min Mat Combat Hostiles Destroyed 13 | . 10 3 . Guns 11 | . 10 1 . Cannons 2 | . . 2 . Classes Destroyed 6 | . 4 2 . Hauler 2 | . 2 . . Watcher 3 | . 3 . . Swarmer 9 | . 9 . . Grunt 1 | . 1 . . Demolisher 1 | . . 1 . Assembled 2 | . . 2 . Best Kill Streak 4 | . 4 1 . Combat Bots Only 3 | . 3 1 . Max Kills in Single Turn 2 | . 2 1 . Gunslinging 1 | . 1 . . Exploded . | . . . . Melee . | . . . . Uniques/NPCs Destroyed . | . . . . Combat | -11 -10 -10 -9 -------- Run | Yrd Mat Min Mat Hostile Shots Fired 83 | . 32 28 23 Missed 19 | . 7 7 5 Damage Taken 838 | . 188 531 119 Core 233 | . 26 172 35 Absorbed by Shields . | . . . . Ignored by Resistances 236 | . 58 142 36 Core Remaining (%) 60 | 100 . 20 . Volleys Fired 52 | . 33 18 1 Largest 2 | . 2 2 1 Hottest 100 | . 40 40 100 Shots Fired 93 | . 66 26 1 Gun 82 | . 66 16 . Cannon 10 | . . 10 . Launcher . | . . . . Special 1 | . . . 1 Kinetic 92 | . 66 26 . Thermal 1 | . . . 1 Explosive . | . . . . Electromagnetic . | . . . . Robot Hit Streak 7 | . 7 6 . Robot Miss Streak 4 | . 4 2 1 Penetration Max . | . . . . Secondary Targets 2 | . 2 . . Max Gunslinging Chain 1 | . 1 . . Shots Hit Robots 59 | . 40 19 . Core Hits 30 | . 24 6 . Critical Kills . | . . . . Critical Parts Destroyed . | . . . . Critical Strikes . | . . . . Melee Attacks . | . . . . Impact . | . . . . Slashing . | . . . . Piercing . | . . . . Sneak Attacks . | . . . . Combat Hostiles . | . . . . Follow-up Attacks . | . . . . Damage Inflicted 570 | . 319 229 22 Guns 417 | . 319 98 . Cannons 131 | . . 131 . Explosions . | . . . . Melee . | . . . . Ramming 22 | . . . 22 Kinetic 548 | . 319 229 . Thermal . | . . . . Explosive . | . . . . Electromagnetic . | . . . . Impact . | . . . . Slashing . | . . . . Piercing . | . . . . Highest Corruption 3 | . . . 3 Average Corruption 2 | . . . 2 Corruption Purged . | . . . . Corruption Blocked . | . . . . Overload Shots . | . . . . Overflow Damage . | . . . . Projectiles . | . . . . Explosions . | . . . . Melee . | . . . . Knockbacks 1 | . . 1 . Impact . | . . . . Kinetic 1 | . . 1 . Secondary . | . . . . Self-Inflicted Damage 9 | . . . 9 Shots . | . . . . Rammed 5 | . . . 5 Targets Rammed 5 | . . . 5 Kicked . | . . . . Crushed . | . . . . Highest Temperature 12 | . 12 . . Average Temperature 6 | . 6 . . Received Heat Transfer 30 | . 30 . . Siege Activations . | . . . . Robots Corrupted . | . . . . Combat Hostiles . | . . . . Parts Fried . | . . . . Impact Corruptions . | . . . . Robots Melted . | . . . . Combat Hostiles . | . . . . Parts Melted . | . . . . Heat Transferred . | . . . . Parts Sabotaged . | . . . . Parts Stolen . | . . . . Parts Stripped . | . . . . Power Chain Reactions . | . . . . Alert | -11 -10 -10 -9 ------- Run | Yrd Mat Min Mat Peak Influence 219 | . 219 35 8 Initial 7 | . . . 7 Average 37 | . 58 3 7 Maximum Alert Level 1 | . 1 . . Low Security (%) 98 | 100 96 100 100 Level 1 1 | . 3 . . Level 2 . | . . . . Level 3 . | . . . . Level 4 . | . . . . Level 5 . | . . . . High Security . | . . . . Max Security . | . . . . Squads Dispatched 1 | . 1 . . Investigation 1 | . 1 . . Extermination . | . . . . Reinforcement . | . . . . Assault . | . . . . Garrison . | . . . . Intercept . | . . . . Searches Triggered . | . . . . Construction Impeded . | . . . . Haulers Reinforced . | . . . . Active Scanning Responses . | . . . . Cargo Convoy Interrupts . | . . . . Stealth | -11 -10 -10 -9 --------- Run | Yrd Mat Min Mat Distress Signals 2 | . 1 1 . Communications Jammed . | . . . . Distress Signals . | . . . . Times Spotted 24 | . 16 5 3 Peak Tracking Total 4 | . 4 2 3 Tactical Retreats 1 | . 1 . . Traps | -11 -10 -10 -9 ------- Run | Yrd Mat Min Mat Traps Triggered 4 | . 4 . . Indirectly . | . . . . Trap Hack Attempts . | . . . . Triggered . | . . . . Disarmed . | . . . . Reprogrammed 4 | . 4 . . Reused . | . . . . Traps Extracted . | . . . . Installed . | . . . . Triggered . | . . . . Machines | -11 -10 -10 -9 ---------- Run | Yrd Mat Min Mat Machines Disabled . | . . . . Max in Single Turn . | . . . . Machines Repaired . | . . . . Machines Dismantled . | . . . . Machines Sabotaged . | . . . . Overloaded Fab Kills . | . . . . Hacking | -11 -10 -10 -9 --------- Run | Yrd Mat Min Mat Machines Accessed 9 | . 9 . . Terminals 8 | . 8 . . Fabricators . | . . . . Repair Stations . | . . . . Recycling Units 1 | . 1 . . Scanalyzers . | . . . . Garrison Access . | . . . . Total Hacks 35 | . 35 . . Successful 23 | . 23 . . Failed 12 | . 12 . . Catastrophic 1 | . 1 . . Database Lockouts . | . . . . Manual 24 | . 24 . . Terminals 34 | . 34 . . Fabricators . | . . . . Repair Stations . | . . . . Recycling Units 1 | . 1 . . Scanalyzers . | . . . . Garrison Access . | . . . . Terminal Hacks 14 | . 14 . . Robot Analysis 1 | . 1 . . Prototype ID Bank 2 | . 2 . . Level Access Points 1 | . 1 . . Branch Access Points 1 | . 1 . . Terminal Index 1 | . 1 . . Locate Traps 3 | . 3 . . Reprogram Traps 1 | . 1 . . Registered Components 1 | . 1 . . Zone Layout 3 | . 3 . . Fabricator Hacks . | . . . . Repair Station Hacks . | . . . . Recycling Unit Hacks 1 | . 1 . . Report Inventory 1 | . 1 . . Scanalyzer . | . . . . Garrison Access Hacks . | . . . . Unauthorized Hacks 8 | . 8 . . Terminals 8 | . 8 . . Botnet 8 | . 8 . . Fabricators . | . . . . Repair Stations . | . . . . Recycling Units . | . . . . Scanalyzers . | . . . . Garrison Access . | . . . . Data Cores Recovered . | . . . . Used . | . . . . Hacking Detections 8 | . 8 . . Full Trace Events . | . . . . Feedback Events . | . . . . Feedback Blocked . | . . . . Robot Schematics Acquired . | . . . . Robots Built . | . . . . Authchips . | . . . . Time . | . . . . Total Robot Build Rating . | . . . . Part Schematics Acquired . | . . . . Parts Built . | . . . . Authchips . | . . . . Time . | . . . . Total Part Build Rating . | . . . . Parts Repaired . | . . . . Time . | . . . . Parts Recycled . | . . . . Recycled Matter . | . . . . Retrieved Matter . | . . . . Retrieved Components . | . . . . Parts Scanalyzed . | . . . . Part Schematics Acquired . | . . . . Parts Damaged . | . . . . Bothacking | -11 -10 -10 -9 ------------ Run | Yrd Mat Min Mat Used RIF Installer . | . . . . Robots Hacked . | . . . . Non-combat . | . . . . Combat . | . . . . Robot Hacks Applied . | . . . . Relay Couplers Released . | . . . . Fabnet Peak Effective % . | . . . . Robots Rewired . | . . . . Allies Hacked . | . . . . Hacks Repelled . | . . . . Allies | -11 -10 -10 -9 -------- Run | Yrd Mat Min Mat Total Allies . | . . . . Largest Group . | . . . . Highest-Rated Group . | . . . . Highest-Rated Ally . | . . . . Total Orders . | . . . . Ally Attacks . | . . . . Total Damage . | . . . . Kills . | . . . . Allies Corrupted . | . . . . Allies Melted . | . . . . Intel | -11 -10 -10 -9 ------- Run | Yrd Mat Min Mat Robot Analysis Total 1 | . 1 . . Derelict Logs Recovered . | . . . . Drone Launches . | . . . . Drone Recoveries . | . . . . Exploration | -11 -10 -10 -9 ------------- Run | Yrd Mat Min Mat Turns Passed 1611 | 62 1003 521 25 Spaces Moved 1009 | 31 708 258 12 Core 31 | 31 . . . Treads . | . . . . Legs 920 | . 708 212 . Wheels 58 | . . 46 12 Hover . | . . . . Flight . | . . . . Fastest Speed 50 | 50 120 90 90 Average Speed 134 | 167 120 172 90 Slowest Speed 200 | 200 190 190 90 Overloaded Moves . | . . . . Propulsion Burnouts . | . . . . Robots Hopped . | . . . . Cave-ins Triggered . | . . . . Exploration Rate (%) 32 | 4 91 30 3 Regions Visited 3 Branch Regions 1 Pre-discovered Areas . | . . . . Known Exits Taken 2 | . 1 1 . Unknown Exits Taken 1 | 1 . . . Scrap Searched 1 | . . 1 . Spaces Dug . | . . . . Terrain Destroyed 1 | . . . 1 Melee . | . . . . Projectile 1 | . . . 1 AOE . | . . . . Terrain Rammed . | . . . . Walls Destroyed . | . . . . Machines Disabled . | . . . . Actions | -11 -10 -10 -9 --------- Run | Yrd Mat Min Mat Total 1183 | 42 807 311 23 Wait 76 | . 43 29 4 Move 1006 | 30 707 257 12 Hop . | . . . . Pick Up 24 | 8 14 2 . Fast Attach . | . . . . Attach 13 | 4 5 3 1 Detach . | . . . . Swap 3 | . 2 1 . Drop 4 | . 3 1 . Fire 52 | . 33 18 1 Melee . | . . . . Ram 5 | . . . 5 Kick . | . . . . Crush . | . . . . Escape Stasis . | . . . . Rewire . | . . . . Trap . | . . . . Miscellaneous . | . . . . Route ------- -11/Scrapyard -10/Materials (discovered 5 exits: *Mat x3 / *Min x2) -10/Mines (discovered 2 exits: *Mat x2) -9/Materials History --------- Turn | Location | Event 31 | -11/Scrapyard | Discovered new exit (range 15) 63 | -11/Scrapyard | Entered Materials 73 | -10/Materials | Identified exit to Materials 77 | -10/Materials | Identified exit to Mines 312 | -10/Materials | Build established: Mutant 1066 | -10/Materials | Entered Mines 1128 | -10/Mines | Assembled infested the area 1133 | -10/Mines | Assisted by a Guerilla fighting off Assembled 1204 | -10/Mines | Discovered exit to Materials (range 4) 1375 | -10/Mines | Discovered exit to Materials (range 9) 1515 | -10/Mines | Core integrity fell below 50% 1549 | -10/Mines | Lost 5 parts (1p2n2w) 1587 | -10/Mines | Entered Materials 1587 | -9/Materials | Evolved 2 slots: Utility x2 1612 | -9/Materials | Self-destructed Last Messages --------------- 01519_ The unstable cave ceiling collapses. 01528_ D-53 Grenadier destroyed. 01534_ The unstable cave ceiling collapses. 01555_ as-12893 knocked back. 01556_ The unstable cave ceiling collapses. 01559_ as-12893 destroyed. 01561_ The unstable cave ceiling collapses. 01561_ Lgt. Cannon destroyed. 01561_ Acquired 2 matter. 01567_ Acquired Com. Wheel. 01573_ K-01 Serf destroyed. PARAMETERS=UTILITY+2 LOCATION=MATERIALS GOAL=ESCAPE 01607_ Slammed into S-10 Pest. 01607_ Destabilizing: System corrupted (+2). 01608_ Slammed into S-10 Pest. 01610_ Destabilizing: System corrupted (+1). 01611_ Mining Laser destroyed. 01611_ Slammed into S-10 Pest. Map ----- +----------------------------------------------------+ | | | | | | | | | | | | | | | | | | | | | | | | | ????????????????????????????????????????????????? | | ????????????????????????????????????????????????? | | ????????????????????????????????????????????????? | | ????????????????????????????????????????????????? | | ????????????????????????????????????????????????? | | ????????????????????????????????????????????????? | | ????????????????????????????????????????????????? | | ????????????????????????????????????????????????? | | ????????????????????????????????????????????????? | | ????????????????????????????????????????????????? | | ????????????????????#########???????????????????? | | ????????????????????# #???????????????????? | | ????????????????????# s #???????????????????? | | ????????????????????# @ s #???????????????????? | | ???????????????#########; #???????????????????? | | ???????????????# # s #???????????????????? | | ???????????????# # #???????????????????? | | ???????????????# """ + #???????????????????? | | ???????????????# """"" # #???????????????????? | | ?????????????????""""" # #???????????????????? | | ?????????????????""""" # #???????????????????? | | ????????????????? """ # #???????????????????? | | ?????????????????? # #???????????????????? | | ????????????????? # u#???????????????????? | | ?????????????????######## #???????????????????? | | ????????????????????????? #???????????????????? | | ????????????????????????? #???????????????????? | | ????????????????????????? #???????????????????? | | ????????????????????????? ! ???????????????????? | | ????????????????????????? ???????????????????? | | ????????????????????????? ???????????????????? | | ????????????????????????? ????????????????????? | | ????????????????????????????????????????????????? | | ????????????????????????????????????????????????? | | ????????????????????????????????????????????????? | | ????????????????????????????????????????????????? | | ????????????????????????????????????????????????? | | ????????????????????????????????????????????????? | +----------------------------------------------------+ Best States ------------- Heat Dissipation 28 Energy Generation 10 Energy Capacity 400 Matter Stores 300 Matter Capacity 300 Sight Range 16 Terrain Scan Density 10 Resistance: KI 20 Resistance: TH 20 Resistance: EX 20 Resistance: EM 20 Resistance: I 20 Resistance: S 20 Resistance: P 20 Evasion (%) 55 Offensive Hacking 10 Item Schematics ----------------- None Robot Schematics ------------------ None Fabricated ------------ Nothing Alien Tech Used ----------------- None Achievements -------------- None Challenges ------------ None Game ------ Seed AnalysisRelayMembrane Manual? 0 Play Time 01:16:53 Cumulative 73.8 hours Start 2024.09.22 @ 21:16:51 End 2024.09.23 @ 16:47:19 Sessions 1 Manual Loads 0 Difficulty Adventurer Special Mode None Game No. 49 Rogue 0 Adventurer 49 Explorer 0 Win Type - Total 0 Types 0/0/0/0/0/0/0/0/0 Lore% 20 Gallery% 40 Achievement% 34 Wizard Run 0 Options --------- Layout 0 ASCII 0 Keyboard 0 Movement Numpad Keybinds 0 Fullscreen 1 Font 18/SmallcapsGlow Map View 76x50 Zoom Use 0% Tactical HUD 1 Map Filters NONE Filters NONE Steam 1 RUN: 4fae8710-70b7-4196-8c54-ab4214471cba